fUST/lending_fUST_20240714
["ID","MTS","AMOUNT","RATE_DAILY","PERIOD"]
[331983059,1720920649084,-499.99999999,0.00024658,2]
[331983060,1720920649094,-543.62405939,0.00024931,2]
[331983061,1720920649104,-506.64447659,0.00024931,2]
[331983062,1720920649113,-260.62534725,0.00025047,2]
[331983063,1720920649123,-168.98629928,0.00025205,2]
[331983064,1720920649132,-500.0,0.00025205,2]
[331983065,1720920649142,-261.2786408,0.00025205,2]
[331983066,1720920649152,-65.29590981,0.00025205,2]
[331983067,1720920649177,-434.70409019,0.00025205,2]
[331983068,1720920649187,-500.0,0.00025205,2]
[331983069,1720920649197,-500.0,0.00025205,2]
[331983070,1720920649207,-500.0,0.00025205,2]
[331983071,1720920649218,-123.20311495,0.00025205,2]
[331983072,1720920649238,-376.79688505,0.00025205,2]
[331983073,1720920649249,-1.97351814,0.00025205,2]
[331983074,1720920649261,-498.02648186,0.00025205,2]
[331983075,1720920649271,-290.17722814,0.00025205,2]
[331983076,1720920649287,-500.0,0.00025205,2]
[331983077,1720920649297,-500.0,0.00025205,2]
[331983078,1720920649307,-500.0,0.00025205,2]
[331983079,1720920649318,-500.0,0.00025205,2]
[331983080,1720920649329,-616.84,0.00025205,2]
[331983081,1720920649339,-500.0,0.00025205,2]
[331983082,1720920649349,-459.96640654,0.00025205,2]
[331983083,1720920694505,175.715437,0.00021096,2]
[331983119,1720921419852,282.34722518,0.00014999,2]
[331983122,1720921450884,756.02290928,0.00014999,2]
[331983134,1720921627129,-154.94016074,0.00018798,2]
[331983135,1720921627152,-450.31481664,0.00018996,2]
[331983136,1720921627174,-157.067843,0.00020482,2]
[331983137,1720921627196,-157.067843,0.00020558,2]
[331983138,1720921627217,-157.067843,0.00020634,2]
[331983139,1720921627240,-157.067843,0.0002071,2]
[331983140,1720921627262,-157.067843,0.00020787,2]
[331983141,1720921627283,-157.067843,0.00020863,2]
[331983142,1720921627305,-157.067843,0.00020939,2]
[331983143,1720921627327,-1772.28575601,0.00020996,2]
[331983165,1720921749166,-320.48190584,0.00018899,2]
[331983166,1720921749187,-154.80965768,0.00018899,2]
[331983167,1720921749208,-333.62831211,0.00019165,2]
[331983168,1720921749234,-24900.0,0.00019655,2]
[331983169,1720921749255,-2122.6472032,0.00020065,2]
[331983170,1720921749276,-154.62873821,0.00020543,2]
[331983171,1720921749303,-294.56527434,0.00020545,2]
[331983172,1720921749326,-204.90749306,0.00020996,2]
[331983173,1720921749348,-56826.01942921,0.00020996,2]
[331983174,1720921749370,-430.07925424,0.00020996,2]
[331983175,1720921749391,-1190.39630207,0.00020996,2]
[331983176,1720921749414,-157.067843,0.00021015,2]
[331983177,1720921749437,-157.067843,0.00021092,2]
[331983178,1720921749460,-154.61316309,0.00021095,2]
[331983179,1720921749482,-583.070334,0.00021096,2]
[331983180,1720921749503,-1000.0,0.00021096,2]
[331983181,1720921749523,-6902.79521922,0.00021096,2]
[331983182,1720921749543,-162.172741,0.00021125,2]
[331983183,1720921749564,-157.067843,0.00021168,2]
[331983184,1720921749585,-157.067843,0.00021244,2]
[331983185,1720921749606,-157.067843,0.0002132,2]
[331983186,1720921749627,-157.067843,0.00021397,2]
[331983187,1720921749652,-157.067843,0.00021473,2]
[331983188,1720921749675,-157.067843,0.00021549,2]
[331983189,1720921749696,-154.91669332,0.00021917,2]
[331983190,1720921749720,-156.54683826,0.00021917,2]
[331983191,1720921749741,-166.666666,0.00021918,2]
[331983192,1720921749761,-2000.0,0.00022,2]
[331983193,1720921766103,-595.493886,0.00022344,2]
[331983196,1720921815213,341.961028,0.00021096,2]
[331983229,1720921832648,-880.93169364,0.00022289,2]
[331983230,1720921832658,-166.666666,0.00022431,2]
[331983231,1720921832672,-189.02397827,0.00022579,2]
[331983232,1720921832681,-1818.1418266,0.00022842,2]
[331983233,1720921832690,-5978.75760176,0.00022938,3]
[331983234,1720921832702,-173.16082743,0.00022938,3]
[331983235,1720921832712,-166.666666,0.00022944,2]
[331983236,1720921832722,-2000.0,0.00023,2]
[331983237,1720921832732,-1818.14182658,0.00023337,2]
[331983238,1720921832742,-1066.54542754,0.00023453,2]
[331983239,1720921832754,-1977.19324901,0.00023454,2]
[331983240,1720921832764,-166.666666,0.00023456,2]
[331983241,1720921832774,-1818.14182658,0.00023832,2]
[331983242,1720921832783,-3062.75377464,0.00023966,2]
[331983243,1720921832828,-1004.25000015,0.00023966,2]
[331983268,1720921838335,-5234.86900946,0.00023966,2]
[331983269,1720921838346,-166.666666,0.00023969,2]
[331983270,1720921838357,-450.31481664,0.00023996,2]
[331983271,1720921838367,-2000.0,0.00024,2]
[331983272,1720921838376,-1818.14182658,0.00024326,2]
[331983273,1720921838386,-166.666666,0.00024482,2]
[331983274,1720921838395,-2000.0,0.000245,7]
[331983275,1720921838405,-294.81353051,0.00024557,3]
[331983276,1720921838415,-150.112233,0.000246,2]
[331983277,1720921838425,-43063.4290043,0.00024647,3]
[331983278,1720921838435,-161.69,0.00024647,3]
[331983279,1720921838445,-500.0,0.00024656,2]
[331983280,1720921838454,-174.35046919,0.00024656,2]
[331983281,1720921838464,-500.0,0.00024656,2]
[331983282,1720921838474,-301.45759717,0.00024656,2]
[331983283,1720921838484,-173.34206036,0.00024656,2]
[331983284,1720921838494,-500.0,0.00024656,2]
[331983285,1720921838505,-301.45630432,0.00024656,2]
[331983286,1720921838516,-500.0,0.00024656,2]
[331983287,1720921838527,-542.3014826,0.00024657,2]
[331983288,1720921838538,-500.0,0.00024657,2]
[331983289,1720921838547,-504.06591135,0.00024657,2]
[331983290,1720921838557,-502.30575868,0.00024657,2]
[331983291,1720921838567,-500.0,0.00024657,2]
[331983292,1720921838576,-518.61650327,0.00024657,2]
[331983293,1720921838586,-525.11520645,0.00024657,2]
[331983294,1720921838595,-500.0,0.00024657,2]
[331983295,1720921838605,-502.03039107,0.00024657,2]
[331983296,1720921838614,-500.92730106,0.00024657,2]
[331983298,1720921838623,-176.84938505,0.00024657,2]
[331983300,1720921838635,-500.0,0.00024657,2]
[331983302,1720921838647,-503.52765655,0.00024657,2]
[331983304,1720921838658,-516.03430104,0.00024657,2]
[331983306,1720921838670,-500.0,0.00024657,2]
[331983308,1720921838679,-510.2246693,0.00024657,2]
[331983310,1720921838688,-500.0,0.00024657,2]
[331983312,1720921838698,-500.0,0.00024657,2]
[331983314,1720921838708,-500.0,0.00024657,2]
[331983316,1720921838719,-500.0,0.00024657,2]
[331983318,1720921838729,-500.0,0.00024657,2]
[331983328,1720921838823,-500.0,0.00024657,2]
[331983330,1720921838834,-1539.41,0.00024657,2]
[331983332,1720921838844,-500.0,0.00024657,2]
[331983333,1720921838853,-500.0,0.00024657,2]
[331983334,1720921838862,-500.0,0.00024657,2]
[331983335,1720921838872,-500.0,0.00024657,2]
[331983336,1720921838881,-503.50168383,0.00024657,2]
[331983337,1720921838891,-500.0,0.00024657,2]
[331983338,1720921838901,-500.0,0.00024657,2]
[331983339,1720921838911,-500.0,0.00024657,2]
[331983340,1720921838920,-500.0,0.00024657,2]
[331983341,1720921838929,-500.0,0.00024657,2]
[331983342,1720921838939,-500.0,0.00024657,2]
[331983343,1720921838948,-500.0,0.00024657,2]
[331983344,1720921838958,-500.0,0.00024657,2]
[331983346,1720921838967,-563.60223545,0.00024657,2]
[331983348,1720921838976,-502.8256439,0.00024657,2]
[331983350,1720921838986,-500.0,0.00024657,2]
[331983352,1720921838996,-535.04172633,0.00024657,2]
[331983353,1720921839005,-500.0,0.00024657,2]
[331983354,1720921839015,-503.40499846,0.00024657,2]
[331983355,1720921839026,-500.0,0.00024657,2]
[331983356,1720921839036,-500.0,0.00024657,2]
[331983357,1720921839046,-500.0,0.00024657,2]
[331983358,1720921839055,-500.0,0.00024657,2]
[331983359,1720921839064,-500.0,0.00024657,2]
[331983360,1720921839074,-500.0,0.00024657,2]
[331983361,1720921839084,-500.0,0.00024657,2]
[331983362,1720921839094,-500.0,0.00024657,2]
[331983363,1720921839105,-502.35236602,0.00024657,2]
[331983364,1720921839114,-500.0,0.00024657,2]
[331983365,1720921839123,-500.0,0.00024657,2]
[331983366,1720921839132,-503.31248988,0.00024657,2]
[331983368,1720921839142,-500.0,0.00024657,2]
[331983369,1720921839152,-500.0,0.00024657,2]
[331983371,1720921839161,-502.87209344,0.00024657,2]
[331983373,1720921839171,-500.0,0.00024657,2]
[331983375,1720921839180,-500.0,0.00024657,2]
[331983377,1720921839189,-517.386575,0.00024657,2]
[331983379,1720921839199,-500.0,0.00024657,2]
[331983381,1720921839209,-500.0,0.00024657,2]
[331983383,1720921839219,-502.67997809,0.00024657,2]
[331983385,1720921839228,-504.65787949,0.00024657,2]
[331983387,1720921839238,-500.0,0.00024657,2]
[331983389,1720921839247,-509.89625284,0.00024657,2]
[331983391,1720921839256,-502.46069773,0.00024657,2]
[331983393,1720921839266,-518.5319511,0.00024657,2]
[331983395,1720921839277,-500.0,0.00024657,2]
[331983397,1720921839287,-331.19804861,0.00024657,2]
[331983398,1720921839296,-500.0,0.00024657,2]
[331983399,1720921839306,-501.66352268,0.00024657,2]
[331983400,1720921839316,-501.69550608,0.00024657,2]
[331983401,1720921839326,-500.0,0.00024657,2]
[331983402,1720921839335,-500.0,0.00024657,2]
[331983403,1720921839345,-505.9687267,0.00024657,2]
[331983404,1720921839355,-88.35067887,0.00024657,2]
[331983405,1720921839371,-411.64932113,0.00024657,2]
[331983406,1720921839380,-503.12251877,0.00024657,2]
[331983407,1720921839389,-500.0,0.00024657,2]
[331983408,1720921839399,-500.0,0.00024657,2]
[331983409,1720921839408,-500.0,0.00024657,2]
[331983410,1720921839418,-500.0,0.00024657,2]
[331983411,1720921839427,-500.0,0.00024657,2]
[331983412,1720921839436,-570.92246406,0.00024657,2]
[331983413,1720921839445,-500.0,0.00024657,2]
[331983414,1720921839455,-500.0,0.00024657,2]
[331983415,1720921839464,-500.0,0.00024657,2]
[331983416,1720921839473,-500.0,0.00024657,2]
[331983417,1720921839482,-599.61818208,0.00024657,2]
[331983418,1720921839491,-500.0,0.00024657,2]
[331983419,1720921839502,-502.55568539,0.00024657,2]
[331983420,1720921839511,-500.0,0.00024657,2]
[331983421,1720921839522,-500.0,0.00024657,2]
[331983422,1720921839532,-500.0,0.00024657,2]
[331983423,1720921839541,-500.0,0.00024657,2]
[331983424,1720921839553,-500.0,0.00024657,2]
[331983425,1720921839562,-570.56176049,0.00024657,2]
[331983426,1720921839571,-505.68407272,0.00024657,2]
[331983427,1720921839581,-500.0,0.00024657,2]
[331983428,1720921839591,-508.9443248,0.00024657,2]
[331983429,1720921839600,-500.0,0.00024657,2]
[331983430,1720921839609,-502.19584868,0.00024657,2]
[331983431,1720921839619,-500.0,0.00024657,2]
[331983432,1720921839628,-534.48230157,0.00024657,2]
[331983433,1720921839638,-500.0,0.00024657,2]
[331983434,1720921839647,-517.1635798,0.00024657,2]
[331983435,1720921839656,-500.0,0.00024657,2]
[331983436,1720921839667,-515.95095879,0.00024657,2]
[331983437,1720921839676,-500.0,0.00024657,2]
[331983438,1720921839688,-500.0,0.00024657,2]
[331983439,1720921839698,-500.0,0.00024657,2]
[331983440,1720921839707,-500.0,0.00024657,2]
[331983441,1720921839716,-197.07393504,0.00024657,2]
[331983442,1720921839727,-500.0,0.00024657,2]
[331983444,1720921839736,-150.78511233,0.00024657,2]
[331983446,1720921839746,-500.0,0.00024657,2]
[331983448,1720921839757,-500.0,0.00024657,2]
[331983449,1720921839767,-500.0,0.00024657,2]
[331983450,1720921839779,-500.0,0.00024657,2]
[331983451,1720921839788,-500.0,0.00024657,2]
[331983452,1720921839797,-500.0,0.00024657,2]
[331983453,1720921839807,-500.0,0.00024657,2]
[331983454,1720921839816,-500.0,0.00024657,2]
[331983455,1720921839825,-500.0,0.00024657,2]
[331983456,1720921839835,-518.81546123,0.00024657,2]
[331983457,1720921839845,-500.0,0.00024657,2]
[331983458,1720921839855,-500.0,0.00024657,2]
[331983459,1720921839864,-500.0,0.00024657,2]
[331983460,1720921839874,-500.0,0.00024657,2]
[331983461,1720921839884,-503.83892011,0.00024657,2]
[331983462,1720921839893,-500.0,0.00024657,2]
[331983463,1720921839903,-500.0,0.00024657,2]
[331983464,1720921839912,-500.0,0.00024657,2]
[331983465,1720921839922,-500.0,0.00024657,2]
[331983466,1720921839932,-500.0,0.00024657,2]
[331983467,1720921839942,-518.95916446,0.00024657,2]
[331983468,1720921839951,-500.0,0.00024657,2]
[331983469,1720921839962,-500.0,0.00024657,2]
[331983470,1720921839972,-500.0,0.00024657,2]
[331983471,1720921839981,-548.52765854,0.00024657,2]
[331983472,1720921839991,-500.0,0.00024657,2]
[331983473,1720921840000,-500.0,0.00024657,2]
[331983474,1720921840010,-500.0,0.00024657,2]
[331983475,1720921840021,-500.0,0.00024657,2]
[331983476,1720921840030,-500.0,0.00024657,2]
[331983477,1720921840040,-503.65113037,0.00024657,2]
[331983478,1720921840050,-500.0,0.00024657,2]
[331983479,1720921840060,-505.84613595,0.00024657,2]
[331983480,1720921840069,-500.0,0.00024657,2]
[331983481,1720921840079,-500.0,0.00024657,2]
[331983482,1720921840089,-502.13573972,0.00024657,2]
[331983483,1720921840099,-500.0,0.00024657,2]
[331983484,1720921840110,-500.0,0.00024657,2]
[331983485,1720921840119,-500.0,0.00024657,2]
[331983486,1720921840130,-500.0,0.00024657,2]
[331983487,1720921840141,-500.0,0.00024657,2]
[331983488,1720921840151,-500.0,0.00024657,2]
[331983489,1720921840160,-500.0,0.00024657,2]
[331983490,1720921840170,-502.15757014,0.00024657,2]
[331983491,1720921840179,-500.0,0.00024657,2]
[331983493,1720921840189,-505.5581188,0.00024657,2]
[331983495,1720921840201,-500.0,0.00024657,2]
[331983497,1720921840211,-792.09,0.00024657,2]
[331983500,1720921840221,-500.0,0.00024657,2]
[331983503,1720921840231,-517.8642405,0.00024657,2]
[331983506,1720921840242,-500.0,0.00024657,2]
[331983509,1720921840252,-440.87321893,0.00024657,2]
[331983512,1720921840261,-500.0,0.00024657,2]
[331983524,1720921840343,-500.0,0.00024657,2]
[331983526,1720921840354,-500.0,0.00024657,2]
[331983528,1720921840365,-500.0,0.00024657,2]
[331983530,1720921840374,-500.0,0.00024657,2]
[331983532,1720921840384,-500.0,0.00024657,2]
[331983534,1720921840394,-506.64145158,0.00024657,2]
[331983536,1720921840404,-338.21245446,0.00024657,2]
[331983538,1720921840414,-500.0,0.00024657,2]
[331983540,1720921840424,-500.0,0.00024657,2]
[331983542,1720921840434,-500.0,0.00024657,2]
[331983544,1720921840443,-500.0,0.00024657,2]
[331983546,1720921840453,-500.0,0.00024657,2]
[331983548,1720921840463,-503.31165592,0.00024657,2]
[331983550,1720921840473,-205.30912265,0.00024657,2]
[331983552,1720921840483,-500.0,0.00024657,2]
[331983554,1720921840493,-524.30089824,0.00024657,2]
[331983556,1720921840504,-500.0,0.00024657,2]
[331983558,1720921840513,-500.0,0.00024657,2]
[331983560,1720921840527,-500.0,0.00024657,2]
[331983562,1720921840537,-503.42079396,0.00024657,2]
[331983564,1720921840547,-506.28757041,0.00024657,2]
[331983566,1720921840556,-500.0,0.00024657,2]
[331983568,1720921840567,-500.0,0.00024657,2]
[331983570,1720921840576,-500.0,0.00024657,2]
[331983572,1720921840586,-500.0,0.00024657,2]
[331983574,1720921840596,-500.0,0.00024657,2]
[331983576,1720921840606,-500.0,0.00024657,2]
[331983578,1720921840617,-500.0,0.00024657,2]
[331983580,1720921840626,-500.0,0.00024657,2]
[331983583,1720921840636,-500.0,0.00024657,2]
[331983585,1720921840645,-500.0,0.00024657,2]
[331983587,1720921840655,-500.0,0.00024657,2]
[331983589,1720921840667,-500.0,0.00024657,2]
[331983590,1720921840678,-500.0,0.00024657,2]
[331983592,1720921840687,-517.54873625,0.00024657,2]
[331983594,1720921840697,-504.427958,0.00024657,2]
[331983596,1720921840707,-503.73913751,0.00024657,2]
[331983598,1720921840717,-500.0,0.00024657,2]
[331983600,1720921840727,-500.0,0.00024657,2]
[331983602,1720921840737,-500.0,0.00024657,2]
[331983604,1720921840750,-500.0,0.00024657,2]
[331983606,1720921840760,-500.0,0.00024657,2]
[331983608,1720921840770,-500.0,0.00024657,2]
[331983610,1720921840780,-500.0,0.00024657,2]
[331983612,1720921840790,-500.0,0.00024657,2]
[331983614,1720921840800,-503.59657739,0.00024657,2]
[331983616,1720921840810,-500.0,0.00024657,2]
[331983618,1720921840824,-518.16443362,0.00024657,2]
[331983620,1720921840834,-500.0,0.00024657,2]
[331983622,1720921840844,-500.0,0.00024657,2]
[331983623,1720921840854,-500.0,0.00024657,2]
[331983625,1720921840863,-500.0,0.00024657,2]
[331983627,1720921840873,-500.0,0.00024657,2]
[331983629,1720921840882,-500.0,0.00024657,2]
[331983630,1720921840891,-258.79139171,0.00024657,2]
[331983632,1720921840900,-1000.43223506,0.00024657,5]
[331983633,1720921840909,-500.0,0.00024657,2]
[331983634,1720921840919,-500.0,0.00024657,2]
[331983636,1720921840928,-500.0,0.00024657,2]
[331983638,1720921840938,-500.0,0.00024657,2]
[331983639,1720921840948,-504.43000445,0.00024657,2]
[331983641,1720921840957,-500.0,0.00024657,2]
[331983643,1720921840968,-500.0,0.00024657,2]
[331983645,1720921840977,-500.0,0.00024657,2]
[331983647,1720921840987,-500.0,0.00024657,2]
[331983648,1720921840997,-500.0,0.00024657,2]
[331983649,1720921841007,-500.0,0.00024657,2]
[331983651,1720921841019,-500.0,0.00024657,2]
[331983652,1720921841029,-538.3221248,0.00024657,2]
[331983653,1720921841039,-503.84448705,0.00024657,2]
[331983654,1720921841049,-500.0,0.00024657,2]
[331983655,1720921841058,-500.0,0.00024657,2]
[331983656,1720921841068,-500.0,0.00024657,2]
[331983657,1720921841077,-500.0,0.00024657,2]
[331983658,1720921841088,-501.26369202,0.00024657,2]
[331983659,1720921841097,-500.0,0.00024657,2]
[331983660,1720921841107,-500.0,0.00024657,2]
[331983661,1720921841116,-500.0,0.00024657,2]
[331983662,1720921841127,-501.51282758,0.00024657,2]
[331983663,1720921841136,-503.08422989,0.00024657,2]
[331983664,1720921841146,-500.0,0.00024657,2]
[331983665,1720921841155,-503.22354975,0.00024657,2]
[331983666,1720921841165,-500.0,0.00024657,2]
[331983667,1720921841175,-500.0,0.00024657,2]
[331983668,1720921841185,-500.0,0.00024657,2]
[331983669,1720921841195,-503.43134078,0.00024657,2]
[331983670,1720921841205,-500.0,0.00024657,2]
[331983671,1720921841214,-500.0,0.00024657,2]
[331983672,1720921841224,-500.0,0.00024657,2]
[331983673,1720921841233,-500.0,0.00024657,2]
[331983674,1720921841243,-503.40248263,0.00024657,2]
[331983675,1720921841253,-500.0,0.00024657,2]
[331983676,1720921841262,-500.0,0.00024657,2]
[331983677,1720921841275,-524.26860186,0.00024657,2]
[331983678,1720921841285,-636.7074349,0.00024657,2]
[331983679,1720921841296,-500.0,0.00024657,2]
[331983680,1720921841306,-500.0,0.00024657,2]
[331983681,1720921841316,-500.0,0.00024657,2]
[331983682,1720921841326,-500.0,0.00024657,2]
[331983683,1720921841335,-500.0,0.00024657,2]
[331983684,1720921841345,-500.0,0.00024657,2]
[331983685,1720921841355,-500.0,0.00024657,2]
[331983686,1720921841364,-500.0,0.00024657,2]
[331983687,1720921841374,-606.82,0.00024657,2]
[331983688,1720921841384,-500.0,0.00024657,2]
[331983690,1720921841393,-500.0,0.00024657,2]
[331983692,1720921841402,-500.0,0.00024657,2]
[331983694,1720921841412,-524.42077363,0.00024657,2]
[331983696,1720921841421,-500.0,0.00024657,2]
[331983697,1720921841431,-508.41629536,0.00024657,2]
[331983698,1720921841442,-519.80131954,0.00024657,2]
[331983699,1720921841451,-500.0,0.00024657,2]
[331983700,1720921841461,-503.11437863,0.00024657,2]
[331983701,1720921841471,-500.0,0.00024657,2]
[331983702,1720921841481,-500.0,0.00024657,2]
[331983703,1720921841491,-500.0,0.00024657,2]
[331983704,1720921841501,-500.0,0.00024657,2]
[331983705,1720921841510,-500.0,0.00024657,2]
[331983706,1720921841521,-500.0,0.00024657,2]
[331983707,1720921841531,-636.71901725,0.00024657,2]
[331983708,1720921841541,-500.0,0.00024657,2]
[331983709,1720921841551,-503.72255814,0.00024657,2]
[331983710,1720921841561,-518.26751006,0.00024657,2]
[331983711,1720921841570,-500.0,0.00024657,2]
[331983712,1720921841579,-500.0,0.00024657,2]
[331983713,1720921841589,-500.0,0.00024657,2]
[331983714,1720921841599,-500.0,0.00024657,2]
[331983715,1720921841608,-334.42149081,0.00024657,2]
[331983716,1720921841617,-500.0,0.00024657,2]
[331983717,1720921841626,-500.0,0.00024657,2]
[331983718,1720921841635,-500.0,0.00024657,2]
[331983719,1720921841645,-393.89739677,0.00024657,2]
[331983720,1720921841654,-500.0,0.00024657,2]
[331983721,1720921841663,-505.50530957,0.00024657,2]
[331983722,1720921841673,-500.0,0.00024657,2]
[331983723,1720921841684,-765.57,0.00024657,2]
[331983724,1720921841758,-501.83082212,0.00024657,2]
[331983725,1720921841769,-501.35180134,0.00024657,2]
[331983726,1720921841779,-503.41116129,0.00024657,2]
[331983727,1720921841788,-500.0,0.00024657,2]
[331983728,1720921841798,-500.0,0.00024657,2]
[331983729,1720921841808,-500.0,0.00024657,2]
[331983730,1720921841817,-500.0,0.00024657,2]
[331983731,1720921841827,-500.0,0.00024657,2]
[331983732,1720921841836,-516.83,0.00024657,2]
[331983733,1720921841846,-513.28619922,0.00024657,2]
[331983734,1720921841856,-500.0,0.00024657,2]
[331983735,1720921841865,-500.0,0.00024657,2]
[331983736,1720921841874,-505.13763152,0.00024657,2]
[331983737,1720921841883,-220.99724466,0.00024657,2]
[331983738,1720921841893,-500.0,0.00024657,2]
[331983739,1720921841902,-502.4260378,0.00024657,2]
[331983740,1720921841911,-500.0,0.00024657,2]
[331983741,1720921841921,-509.33569418,0.00024657,2]
[331983742,1720921841930,-502.67463799,0.00024657,2]
[331983743,1720921841939,-500.0,0.00024657,2]
[331983744,1720921841948,-502.80046309,0.00024657,2]
[331983745,1720921841958,-528.87270732,0.00024657,2]
[331983746,1720921841967,-500.0,0.00024657,2]
[331983747,1720921841976,-500.0,0.00024657,2]
[331983748,1720921841985,-500.0,0.00024657,2]
[331983749,1720921841994,-500.0,0.00024657,2]
[331983750,1720921842003,-970.66,0.00024657,2]
[331983751,1720921842013,-500.0,0.00024657,2]
[331983752,1720921842023,-500.0,0.00024657,2]
[331983753,1720921842032,-500.0,0.00024657,2]
[331983754,1720921842042,-536.19824133,0.00024657,2]
[331983755,1720921842051,-500.0,0.00024657,2]
[331983756,1720921842060,-627.08065071,0.00024657,2]
[331983757,1720921842070,-500.0,0.00024657,2]
[331983758,1720921842079,-503.99106012,0.00024657,2]
[331983759,1720921842089,-500.0,0.00024657,2]
[331983760,1720921842098,-504.03512229,0.00024657,2]
[331983761,1720921842107,-500.0,0.00024657,2]
[331983762,1720921842117,-500.3066454,0.00024657,2]
[331983763,1720921842127,-500.0,0.00024657,2]
[331983764,1720921842136,-500.0,0.00024657,2]
[331983765,1720921842146,-500.0,0.00024657,2]
[331983766,1720921842155,-890.13,0.00024657,2]
[331983767,1720921842165,-505.5004922,0.00024657,2]
[331983768,1720921842174,-379.39401125,0.00024657,2]
[331983769,1720921842183,-500.0,0.00024657,2]
[331983770,1720921842193,-500.0,0.00024657,2]
[331983771,1720921842202,-500.0,0.00024657,2]
[331983772,1720921842211,-512.08471957,0.00024657,2]
[331983773,1720921842221,-500.0,0.00024657,2]
[331983774,1720921842231,-500.0,0.00024657,2]
[331983775,1720921842240,-500.0,0.00024657,2]
[331983776,1720921842252,-500.0,0.00024657,2]
[331983777,1720921842262,-500.0,0.00024657,2]
[331983778,1720921842272,-500.0,0.00024657,2]
[331983779,1720921842281,-500.0,0.00024657,2]
[331983780,1720921842291,-500.0,0.00024657,2]
[331983781,1720921842300,-500.0,0.00024657,2]
[331983782,1720921842310,-501.53774084,0.00024657,2]
[331983783,1720921842320,-500.0,0.00024657,2]
[331983784,1720921842329,-500.0,0.00024657,2]
[331983785,1720921842339,-503.48460947,0.00024657,2]
[331983786,1720921842349,-500.0,0.00024657,2]
[331983787,1720921842358,-500.0,0.00024657,2]
[331983788,1720921842367,-501.54751808,0.00024657,2]
[331983789,1720921842376,-500.0,0.00024657,2]
[331983790,1720921842385,-500.0,0.00024657,2]
[331983791,1720921842395,-500.0,0.00024657,2]
[331983792,1720921842405,-500.0,0.00024657,2]
[331983793,1720921842414,-500.0,0.00024657,2]
[331983794,1720921842423,-500.0,0.00024657,2]
[331983795,1720921842432,-257.35810913,0.00024657,2]
[331983796,1720921842442,-374.503737,0.00024657,7]
[331983797,1720921842451,-153.89859,0.00024657,7]
[331983798,1720921842460,-500.0,0.00024657,2]
[331983799,1720921842470,-1240.05,0.00024657,2]
[331983800,1720921842480,-500.0,0.00024657,2]
[331983801,1720921842489,-503.15273814,0.00024657,2]
[331983802,1720921842499,-500.0,0.00024657,2]
[331983803,1720921842508,-374.503737,0.00024657,7]
[331983804,1720921842518,-500.0,0.00024657,2]
[331983805,1720921842530,-500.0,0.00024657,2]
[331983806,1720921842539,-500.0,0.00024657,2]
[331983807,1720921842549,-500.0,0.00024657,2]
[331983808,1720921842559,-500.0,0.00024657,2]
[331983809,1720921842568,-151.0,0.00024657,7]
[331983810,1720921842577,-674.465673,0.00024657,7]
[331983811,1720921842587,-501.06308457,0.00024657,2]
[331983812,1720921842596,-500.0,0.00024657,2]
[331983813,1720921842606,-500.0,0.00024657,2]
[331983814,1720921842615,-500.0,0.00024657,2]
[331983815,1720921842625,-674.465673,0.00024657,7]
[331983816,1720921842634,-500.0,0.00024657,2]
[331983817,1720921842644,-500.0,0.00024657,2]